bitfinex/quotes_BTCUSD_20250213
["timestamp","ask_amount","ask_price","bid_price","bid_amount"]
[1739473348792,1.336364,96168.0,96167.0,0.15]
[1739473348988,1.393782,96168.0,96167.0,0.151]
[1739473349205,1.49628565,96168.0,96167.0,0.001]
[1739473349407,1.393782,96168.0,96167.0,0.001]
[1739473350257,1.393782,96168.0,96161.0,0.00022365]
[1739473350258,1.237805,96168.0,96161.0,0.00022365]
[1739473350456,0.155986,96162.0,96161.0,0.00022365]
[1739473350652,1.836567,96162.0,96161.0,0.00022365]
[1739473350835,2.007054,96162.0,96161.0,0.00022365]
[1739473351151,2.862284,96162.0,96161.0,0.00022365]
[1739473351353,3.085852,96162.0,96161.0,0.00022365]
[1739473351715,3.115155,96162.0,96161.0,0.00022365]
[1739473351914,3.116155,96162.0,96161.0,0.00066263]
[1739473352376,2.847894,96162.0,96161.0,0.00066263]
[1739473352579,2.292884,96162.0,96161.0,0.00066263]
[1739473352772,2.21181,96162.0,96161.0,0.00066263]
[1739473353394,2.21481,96162.0,96161.0,0.00066263]
[1739473353576,1.851127,96162.0,96161.0,0.00066263]
[1739473353781,1.718846,96162.0,96161.0,0.00066263]
[1739473354408,1.82134965,96162.0,96161.0,0.00066263]
[1739473354618,1.718846,96162.0,96161.0,0.00066263]
[1739473355028,1.317503,96162.0,96161.0,0.00066263]
[1739473355438,1.418969,96162.0,96161.0,0.00066263]
[1739473356083,0.939355,96162.0,96161.0,0.00066263]
[1739473356214,0.5448,96162.0,96161.0,0.00066263]
[1739473356443,0.004,96162.0,96161.0,0.40915428]
[1739473357289,0.001,96162.0,96161.0,0.40915428]
[1739473357500,0.10134188,96200.0,96161.0,0.40915428]
[1739473357501,0.155969,96173.0,96167.0,0.15]
[1739473357703,0.155969,96173.0,96161.0,0.25616628]
[1739473357704,0.155978,96168.0,96161.0,0.10616628]
[1739473357907,0.14637039,96180.0,96161.0,0.00766263]
[1739473357908,0.155986,96162.0,96161.0,0.00766263]
[1739473358115,1.368661,96162.0,96161.0,0.00766263]
[1739473358333,1.439504,96162.0,96161.0,0.00366263]
[1739473358541,1.003149,96162.0,96161.0,0.00366263]
[1739473359436,1.003149,96162.0,96161.0,0.00066263]
[1739473359779,1.003149,96162.0,96161.0,0.00766263]
[1739473360175,1.003149,96162.0,96161.0,0.00466263]
[1739473360378,0.6655,96162.0,96161.0,0.00466263]
[1739473360582,0.6655,96162.0,96161.0,0.00766263]
[1739473360583,0.155986,96162.0,96161.0,0.00766263]
[1739473361216,1.081807,96162.0,96161.0,0.00766263]
[1739473361391,1.071875,96162.0,96161.0,0.00766263]
[1739473361594,1.071875,96162.0,96161.0,0.11016628]
[1739473361803,0.710747,96162.0,96161.0,0.00766263]
[1739473363043,0.615386,96162.0,96161.0,0.00766263]
[1739473364706,0.4594,96162.0,96161.0,0.00766263]
[1739473364918,0.200871,96162.0,96161.0,0.31365063]
[1739473365119,0.155979,96167.0,96162.0,0.15]
[1739473365320,0.0001065,96169.0,96164.0,0.15]
[1739473365321,0.401767,96166.0,96164.0,0.15]
[1739473365500,0.238823,96165.0,96161.0,0.00766263]
[1739473365734,0.438071,96168.0,96163.0,0.15]
[1739473366030,0.0001065,96169.0,96168.0,0.155977]
[1739473366281,0.0001065,96169.0,96168.0,0.40848065]
[1739473366582,0.0001065,96169.0,96168.0,1.04948065]
[1739473366584,0.0001065,96169.0,96168.0,1.09458065]
[1739473367376,0.0001065,96169.0,96168.0,1.09558065]
[1739473367640,0.0001065,96169.0,96168.0,1.09458065]
[1739473367885,0.0001065,96169.0,96168.0,1.11624477]
[1739473368940,0.0001065,96169.0,96168.0,1.12324477]
[1739473371569,0.0001065,96169.0,96168.0,1.12324477]
[1739473371739,0.0001065,96169.0,96168.0,1.10858065]
[1739473372372,0.0001065,96169.0,96168.0,1.08558065]
[1739473375557,0.0001065,96169.0,96168.0,1.10858065]
[1739473376602,0.0001065,96169.0,96168.0,1.08558065]
[1739473377600,0.0001065,96169.0,96168.0,1.04048065]
[1739473379055,0.0001,96200.0,96190.0,0.15]
[1739473379258,0.953957,96199.0,96191.0,0.10250365]
[1739473379526,0.833328,96199.0,96194.0,0.15]
[1739473379734,1.315866,96199.0,96194.0,0.25250365]
[1739473379937,0.485892,96198.0,96194.0,0.25250365]
[1739473380149,0.0001,96200.0,96196.0,0.15]
[1739473380362,0.00013164,96198.0,96197.0,0.25250365]
[1739473380573,0.12687164,96198.0,96197.0,0.40843365]
[1739473380778,0.00013164,96198.0,96197.0,0.40843365]
[1739473381400,0.38471564,96198.0,96197.0,0.25250365]
[1739473381614,0.11358564,96198.0,96197.0,0.40843365]
[1739473381770,0.00013164,96198.0,96197.0,0.40843365]
[1739473381978,0.00013164,96198.0,96197.0,0.40943365]
[1739473382766,0.00013164,96198.0,96197.0,0.41143365]
[1739473382982,0.00013164,96198.0,96197.0,0.94663365]
[1739473384814,0.00023814,96198.0,96197.0,0.94663365]
[1739473385238,0.00023814,96198.0,96197.0,0.94563365]
[1739473385653,0.00023814,96198.0,96197.0,0.95263365]
[1739473385880,0.00023814,96198.0,96197.0,0.95063365]
[1739473386315,0.00023814,96198.0,96197.0,0.95763365]
[1739473386516,1.05005814,96198.0,96197.0,0.79470365]
[1739473386718,1.10608814,96198.0,96197.0,0.80170365]
[1739473386905,0.95016014,96198.0,96197.0,0.79470365]
[1739473387326,0.95016014,96198.0,96197.0,0.80170365]
[1739473387537,0.83951214,96198.0,96197.0,0.79470365]
[1739473387744,0.83951214,96198.0,96197.0,0.78770365]
[1739473387946,0.68735714,96198.0,96197.0,0.78770365]
[1739473388148,0.46391914,96198.0,96197.0,0.25950365]
[1739473388562,0.46391914,96198.0,96197.0,0.25250365]
[1739473388916,0.46391914,96198.0,96197.0,0.25650365]
[1739473389117,0.23477414,96198.0,96197.0,0.25650365]
[1739473389436,0.23477414,96198.0,96197.0,0.26350365]
[1739473389662,0.23477414,96198.0,96197.0,0.25650365]
[1739473389840,0.23477414,96198.0,96197.0,0.26050365]
[1739473390039,0.18620314,96198.0,96197.0,0.41643365]
[1739473390239,0.16493914,96198.0,96197.0,0.41243365]
[1739473390438,0.16493914,96198.0,96197.0,0.41543365]
[1739473390644,0.00023814,96198.0,96197.0,0.41143365]
[1739473391043,0.00023814,96198.0,96197.0,0.41543365]
[1739473391244,0.00023814,96198.0,96197.0,0.41243365]
[1739473391442,0.00023814,96198.0,96197.0,0.40843365]
[1739473391808,0.00023814,96198.0,96197.0,0.41243365]
[1739473392013,0.00023814,96198.0,96197.0,0.25650365]
[1739473392256,0.62406314,96198.0,96197.0,0.25650365]
[1739473392479,1.56471014,96198.0,96197.0,0.26050365]
[1739473392677,1.60122714,96198.0,96197.0,0.25650365]
[1739473392886,1.53161714,96198.0,96197.0,0.25250365]
[1739473393525,1.53161714,96198.0,96197.0,0.154]
[1739473394353,1.63412079,96198.0,96197.0,0.156]
[1739473394557,1.53161714,96198.0,96197.0,0.152]
[1739473395174,1.44811114,96198.0,96197.0,0.152]
[1739473395376,1.36224814,96198.0,96197.0,0.152]
[1739473395505,1.27680714,96198.0,96197.0,0.15]
[1739473396559,1.27680714,96198.0,96197.0,0.151]
[1739473397117,1.07687714,96198.0,96197.0,0.151]
[1739473397348,0.79692514,96198.0,96197.0,0.15]
[1739473397561,0.43299214,96198.0,96197.0,0.15]
[1739473397745,0.40928514,96198.0,96197.0,0.15]
[1739473398194,0.32289314,96198.0,96197.0,0.40843365]
[1739473398397,0.0001065,96199.0,96198.0,0.305928]
[1739473398606,0.0001065,96199.0,96198.0,0.40843165]
[1739473398820,0.1286615,96199.0,96198.0,0.40843165]
[1739473399022,0.0001065,96199.0,96198.0,0.25250365]
[1739473399187,0.0001065,96199.0,96198.0,0.40843165]
[1739473399390,0.1097615,96199.0,96198.0,0.40843165]
[1739473399792,0.0001065,96199.0,96198.0,0.40843165]
[1739473401673,0.0001065,96199.0,96198.0,0.41143165]
[1739473402107,0.0001065,96199.0,96198.0,0.41543165]
[1739473403807,0.0001065,96199.0,96198.0,0.25950365]
[1739473404008,0.1560325,96199.0,96198.0,0.25950365]
[1739473404211,0.5857905,96199.0,96198.0,0.25950365]
[1739473404655,0.5857905,96199.0,96198.0,0.10950365]
[1739473405105,0.5857905,96199.0,96198.0,0.004]
[1739473405282,0.4298645,96199.0,96196.0,0.15]
[1739473405493,0.15593,96197.0,96196.0,0.15]
[1739473405674,0.15593,96197.0,96194.0,0.00022365]
[1739473405675,0.155933,96195.0,96194.0,0.00022365]
[1739473405876,1.04089,96195.0,96194.0,0.00022365]
[1739473406174,0.491631,96195.0,96194.0,0.00022365]
[1739473406385,0.0001065,96199.0,96196.0,0.155931]
[1739473406586,0.215265,96198.0,96197.0,0.15]
[1739473406800,0.184565,96198.0,96197.0,0.30593]
[1739473407652,0.0001065,96199.0,96198.0,0.305928]
[1739473407867,0.0001065,96199.0,96198.0,0.40843165]
[1739473410387,0.0001065,96199.0,96198.0,0.43743165]
[1739473410598,0.0001065,96199.0,96198.0,1.41403165]
[1739473410727,0.0001065,96199.0,96198.0,1.43466465]
[1739473410943,0.0001065,96199.0,96198.0,1.47377442]
[1739473411403,0.0001065,96199.0,96198.0,1.46677442]
[1739473411606,0.0001065,96199.0,96198.0,1.47377442]
[1739473412378,0.0004,96209.0,96201.0,0.173]
[1739473412575,1e-06,96209.0,96208.0,0.55591565]
[1739473412794,1e-06,96209.0,96208.0,0.5860325]
[1739473413618,1e-06,96209.0,96208.0,0.5930325]
[1739473413774,1e-06,96209.0,96208.0,0.62050799]
[1739473414168,1e-06,96209.0,96208.0,0.60650799]
[1739473414874,1e-06,96209.0,96208.0,1.43539114]
[1739473415093,1e-06,96209.0,96208.0,1.44239114]
[1739473415303,1e-06,96209.0,96208.0,1.39891565]
[1739473415551,1e-06,96209.0,96208.0,1.40591565]
[1739473415709,1e-06,96209.0,96208.0,1.39891565]
[1739473416171,1e-06,96209.0,96208.0,1.40591565]
[1739473416325,1e-06,96209.0,96208.0,1.39191565]
[1739473416526,1e-06,96209.0,96208.0,1.39891565]
[1739473416752,1e-06,96209.0,96208.0,1.35701565]
[1739473416975,1e-06,96209.0,96208.0,1.35101565]
[1739473417182,1e-06,96209.0,96208.0,1.26741565]
[1739473417349,1e-06,96209.0,96208.0,1.28141565]
[1739473417749,1e-06,96209.0,96208.0,1.11850365]
[1739473417948,1e-06,96209.0,96208.0,1.27441565]
[1739473418199,1e-06,96209.0,96208.0,1.28141565]
[1739473419024,1e-06,96209.0,96208.0,1.27441565]
[1739473419408,1e-06,96209.0,96208.0,1.27341565]
[1739473419618,1e-06,96209.0,96208.0,1.26741565]
[1739473419875,1e-06,96209.0,96208.0,1.28041565]
[1739473420290,1e-06,96209.0,96208.0,1.27441565]
[1739473420622,1e-06,96209.0,96208.0,1.38701565]
[1739473422428,0.0001075,96209.0,96208.0,1.38701565]
[1739473422561,0.0001075,96209.0,96208.0,1.37301565]
[1739473422763,0.0001075,96209.0,96208.0,1.38001565]
[1739473422963,0.0001075,96209.0,96208.0,1.38701565]
[1739473423210,0.0001075,96209.0,96208.0,1.38001565]
[1739473423443,0.0001075,96209.0,96208.0,1.37301565]
[1739473423673,0.0001075,96209.0,96208.0,1.38001565]
[1739473424241,0.0001075,96209.0,96208.0,1.40075734]
[1739473424434,0.0001075,96209.0,96208.0,1.40775734]
[1739473430459,0.0001075,96209.0,96208.0,1.40075734]
[1739473430852,0.0001075,96209.0,96208.0,1.40775734]
[1739473431261,0.0001075,96209.0,96208.0,1.40075734]
[1739473431436,0.0001075,96209.0,96208.0,1.40775734]
[1739473431990,0.0001075,96209.0,96208.0,1.40075734]
[1739473432386,0.023,96282.0,96215.0,0.15]
[1739473432599,0.00013159,96243.0,96240.0,0.15]
[1739473432831,3.77274,96242.0,96240.0,0.15]
[1739473433441,3.77274,96242.0,96241.0,0.15]
[1739473434217,3.77274,96242.0,96238.0,0.15]
[1739473434419,3.77274,96242.0,96239.0,0.10250365]
[1739473435423,3.77274,96242.0,96241.0,0.001]
[1739473435644,3.7728465,96242.0,96241.0,0.001]
[1739473435852,3.7728465,96242.0,96239.0,0.25836365]
[1739473436216,3.77274,96241.0,96239.0,0.25936465]
[1739473436428,3.77274,96241.0,96240.0,0.15586]
[1739473436838,0.0001065,96242.0,96240.0,0.15586]
[1739473436979,3.77274,96241.0,96240.0,0.15586]
[1739473437922,3.77274,96241.0,96239.0,0.10350365]
[1739473438342,3.77274,96241.0,96240.0,0.15586]
[1739473438923,3.77274,96241.0,96240.0,0.26036365]
[1739473438924,3.7722203,96241.0,96240.0,0.26036365]
[1739473439156,3.7722203,96241.0,96240.0,0.40836365]
[1739473439353,0.0001065,96242.0,96241.0,0.353658]
[1739473439565,0.0001065,96242.0,96241.0,0.45616165]
[1739473440377,0.0001065,96242.0,96241.0,1.01436165]
[1739473440588,0.0001065,96242.0,96241.0,1.09466165]
[1739473440795,9e-08,96243.0,96242.0,0.409157]
[1739473441002,9e-08,96249.0,96248.0,0.155847]
[1739473441212,0.0001065,96266.0,96265.0,0.388319]
[1739473441420,0.0001065,96266.0,96265.0,1.02602265]
[1739473441847,0.0001065,96266.0,96265.0,0.94352265]
[1739473442474,0.0001065,96266.0,96265.0,0.95052265]
[1739473442679,0.0001065,96266.0,96265.0,0.94352265]
[1739473443104,0.0001065,96266.0,96265.0,0.94852265]
[1739473443314,0.0001065,96266.0,96265.0,0.95052265]
[1739473443718,0.0001065,96266.0,96265.0,0.94952265]
[1739473443933,0.0001065,96266.0,96265.0,0.95452265]
[1739473444137,5e-07,96266.0,96265.0,1.11222265]
[1739473444344,0.0004,96289.0,96279.0,0.381797]
[1739473444345,5e-07,96280.0,96279.0,0.381797]
[1739473444547,5e-07,96280.0,96279.0,1.04250065]
[1739473444738,5e-08,96289.0,96288.0,0.305782]
[1739473444894,0.00013156,96289.0,96288.0,0.94348565]
[1739473445096,0.00013156,96289.0,96288.0,0.96648565]
[1739473445467,0.00013156,96289.0,96288.0,0.9966025]
[1739473445674,0.00013156,96289.0,96288.0,1.0066025]
[1739473445882,0.00013156,96289.0,96288.0,1.09188565]
[1739473446086,0.00013156,96289.0,96288.0,1.11259688]
[1739473446496,0.00013156,96289.0,96288.0,1.11959688]
[1739473446704,0.00013156,96289.0,96288.0,1.11259688]
[1739473447351,0.00013156,96289.0,96288.0,1.11959688]
[1739473447770,0.00013156,96289.0,96288.0,1.11259688]
[1739473447978,0.00013156,96289.0,96288.0,1.11959688]
[1739473448651,0.00013156,96289.0,96288.0,1.03338565]
[1739473448854,0.00013156,96289.0,96288.0,0.95748565]
[1739473449293,0.00013156,96289.0,96288.0,0.95048565]
[1739473449499,0.00013156,96289.0,96288.0,0.94348565]
[1739473449709,0.00013156,96289.0,96288.0,0.95748565]
[1739473449913,0.00013156,96289.0,96288.0,0.42228565]
[1739473450122,0.00013156,96289.0,96288.0,0.95748565]
[1739473450344,0.00013156,96289.0,96288.0,0.95048565]
[1739473450577,0.00013156,96289.0,96288.0,0.95748565]
[1739473451202,0.00013156,96289.0,96288.0,0.64470365]
[1739473451413,0.15591256,96289.0,96288.0,0.11650365]
[1739473451616,0.15591256,96289.0,96288.0,0.10950365]
[1739473451833,0.16107752,96289.0,96288.0,0.10950365]
[1739473452037,0.16107752,96289.0,96288.0,0.11650365]
[1739473452246,0.26358117,96289.0,96288.0,0.007]
[1739473452453,1.74841152,96289.0,96288.0,0.007]
[1739473452632,1.74841152,96289.0,96288.0,0.003]
[1739473452633,1.73540352,96289.0,96288.0,0.003]
[1739473452858,0.155792,96282.0,96281.0,0.15]
[1739473453063,0.807674,96282.0,96281.0,0.10250365]
[1739473453291,0.56626781,96282.0,96281.0,0.25250365]
[1739473453495,0.00494081,96282.0,96281.0,0.25250365]
[1739473453907,0.00213156,96289.0,96282.0,0.15]
[1739473454112,0.00213156,96289.0,96281.0,0.10250365]
[1739473454113,0.00213156,96289.0,96284.0,0.15]
[1739473454319,0.00213156,96289.0,96286.0,0.15]
[1739473454320,0.00013156,96289.0,96286.0,0.15]
[1739473454531,0.00013156,96289.0,96287.0,0.25828665]
[1739473454732,0.00213156,96289.0,96287.0,0.10250365]
[1739473455154,0.00013156,96289.0,96288.0,0.155782]
[1739473455332,0.00495663,96288.0,96287.0,0.15]
[1739473455537,0.00013156,96289.0,96287.0,0.25250365]
[1739473456402,0.00495663,96288.0,96287.0,0.25250365]
[1739473456561,0.00495663,96288.0,96287.0,0.25450365]
[1739473456771,0.00013156,96289.0,96287.0,0.25450365]
[1739473456933,0.15591256,96289.0,96287.0,0.25450365]
[1739473457149,0.15591256,96289.0,96288.0,0.10250365]
[1739473457366,1.21395356,96289.0,96287.0,0.152]
[1739473457657,0.934016,96288.0,96287.0,0.15]
[1739473457893,0.80266016,96288.0,96251.0,0.09248102]
[1739473458143,0.14637039,96280.0,96267.0,0.08348073]
[1739473458314,0.155806,96273.0,96269.0,0.15]
[1739473458659,0.52767916,96272.0,96271.0,0.15]
[1739473458852,0.00493016,96272.0,96271.0,0.40831365]
[1739473458983,0.04793156,96289.0,96271.0,0.40831365]
[1739473458984,0.00223806,96289.0,96288.0,0.305782]
[1739473459187,0.00223806,96289.0,96288.0,0.94348565]
[1739473459430,0.00223806,96289.0,96288.0,0.40828565]
[1739473459616,0.00023806,96289.0,96288.0,0.40828565]
[1739473460024,0.00123806,96289.0,96288.0,0.40828565]
[1739473460788,0.00023806,96289.0,96288.0,0.40828565]
[1739473460995,0.00023806,96289.0,96288.0,0.41528565]
[1739473461628,0.00023806,96289.0,96288.0,0.42228565]
[1739473462042,0.00023806,96289.0,96288.0,0.95748565]
[1739473463022,0.00023806,96289.0,96288.0,0.95048565]
[1739473463247,0.00023806,96289.0,96288.0,0.42228565]
[1739473464101,0.0001065,96306.0,96294.0,0.305772]
[1739473465294,0.0001065,96306.0,96294.0,0.52947565]
[1739473465500,0.0001065,96306.0,96294.0,0.55947565]
[1739473465904,0.0001065,96306.0,96294.0,0.55247565]
[1739473466510,0.0001065,96306.0,96294.0,0.55947565]
[1739473466741,0.0001065,96306.0,96295.0,0.046]
[1739473466949,0.207547,96364.0,96295.0,0.046]
[1739473466950,0.0143609,96358.0,96352.0,0.305679]
[1739473467145,0.0143609,96358.0,96352.0,0.863879]
[1739473467366,0.00020154,96353.0,96352.0,0.863879]
[1739473467573,0.00020154,96353.0,96352.0,0.840879]
[1739473467982,0.13714154,96353.0,96352.0,0.15]
[1739473468236,0.00020154,96353.0,96352.0,0.25250365]
[1739473468855,0.00020154,96353.0,96352.0,0.25850365]
[1739473469258,0.00020154,96353.0,96352.0,0.81670365]
[1739473469667,0.00020154,96353.0,96352.0,0.82370365]
[1739473470300,0.00020154,96353.0,96352.0,0.81070365]
[1739473470472,0.14748933,96387.0,96382.0,0.155629]
[1739473470706,0.10823111,96386.0,96383.0,0.10250365]
[1739473470929,0.00043811,96386.0,96383.0,0.25813165]
[1739473471057,0.00043811,96386.0,96385.0,0.155625]
[1739473471259,0.00043811,96386.0,96385.0,0.10250365]
[1739473472581,1.22456011,96386.0,96385.0,0.10250365]
[1739473472815,0.98376611,96386.0,96385.0,0.10250365]
[1739473473055,0.98376611,96386.0,96375.0,0.5352]
[1739473473326,0.155634,96380.0,96375.0,0.5352]
[1739473473508,0.867519,96379.0,96375.0,0.5352]
[1739473473711,0.482336,96378.0,96375.0,0.5352]
[1739473473919,1.554238,96385.0,96375.0,0.5352]
[1739473474121,1.163303,96384.0,96375.0,0.5352]
[1739473474321,0.815418,96385.0,96346.0,0.207583]
[1739473474585,0.839886,96384.0,96365.0,0.15]
[1739473474786,1.154624,96385.0,96367.0,0.15]
[1739473474915,0.86063,96383.0,96375.0,0.001]
[1739473475125,0.155626,96385.0,96377.0,0.155638]
[1739473475321,0.997205,96385.0,96378.0,0.155635]
[1739473475528,0.997205,96385.0,96375.0,0.208521]
[1739473475724,0.997205,96385.0,96383.0,0.155628]
[1739473475725,0.613293,96385.0,96383.0,0.155628]
[1739473475932,0.180844,96384.0,96383.0,0.155628]
[1739473476303,0.145763,96385.0,96383.0,0.25813165]
[1739473476508,0.00043811,96386.0,96385.0,0.155625]
[1739473476651,0.00043811,96386.0,96385.0,0.25812865]
[1739473477215,0.14666211,96386.0,96385.0,0.25812865]
[1739473477431,0.14165211,96386.0,96385.0,0.94332865]
[1739473477634,0.00043811,96386.0,96385.0,0.94332865]
[1739473477842,0.24057111,96386.0,96385.0,0.25250365]
[1739473478049,0.31665811,96386.0,96385.0,0.25250365]
[1739473478246,0.61825011,96386.0,96385.0,0.25250365]
[1739473478452,0.61645711,96386.0,96385.0,0.25250365]
[1739473478676,0.61645711,96386.0,96385.0,0.25650365]
[1739473479058,0.22021811,96386.0,96385.0,0.41212865]
[1739473479837,0.00043811,96386.0,96385.0,0.41212865]
[1739473480043,0.00043811,96386.0,96385.0,0.41512865]
[1739473480579,0.21506511,96386.0,96385.0,0.41512865]
[1739473480787,0.17218511,96386.0,96385.0,0.41512865]
[1739473481216,0.00043811,96386.0,96385.0,0.41512865]
[1739473482245,0.00043811,96386.0,96385.0,0.49752865]
[1739473482672,0.00043811,96386.0,96385.0,0.41512865]
[1739473483178,0.00043811,96386.0,96385.0,0.95032865]
[1739473484322,1.0,96398.0,96385.0,0.64470365]
[1739473484527,0.855295,96397.0,96386.0,0.10250365]
[1739473484737,0.633967,96396.0,96391.0,0.15]
[1739473484926,0.628508,96395.0,96392.0,0.10250365]
[1739473485128,0.581677,96394.0,96391.0,0.40811865]
[1739473485334,0.241789,96396.0,96393.0,0.25811565]
[1739473485459,1.00013138,96398.0,96397.0,0.155606]
[1739473485663,0.321803,96397.0,96392.0,0.5352]
[1739473485861,0.321803,96397.0,96395.0,0.155608]
[1739473486063,0.321803,96397.0,96392.0,0.5352]
[1739473486064,0.321803,96397.0,96396.0,0.155608]
[1739473486267,0.321803,96397.0,96392.0,0.742685]
[1739473486517,0.321803,96397.0,96392.0,0.5352]
[1739473486715,0.15561,96395.0,96392.0,0.5352]
[1739473487028,0.631788,96394.0,96393.0,0.10250365]
[1739473487388,0.603288,96394.0,96393.0,0.10250365]
[1739473487586,0.758899,96394.0,96393.0,0.10250365]
[1739473488180,0.603288,96394.0,96392.0,0.6852]
[1739473488434,1.100972,96397.0,96392.0,0.6852]
[1739473488654,0.704431,96396.0,96393.0,0.10250365]
[1739473488810,0.74841,96397.0,96393.0,0.10250365]
[1739473489013,0.76764,96397.0,96393.0,0.10350365]
[1739473489214,0.76764,96397.0,96393.0,0.10250365]
[1739473489421,0.219782,96397.0,96396.0,0.155608]
[1739473489627,0.239982,96397.0,96396.0,0.155608]
[1739473490477,0.154547,96397.0,96396.0,0.25811165]
[1739473491563,0.154547,96397.0,96396.0,0.10250365]
[1739473492005,0.154547,96397.0,96396.0,0.25811165]
[1739473492380,0.154547,96397.0,96396.0,0.26211165]
[1739473492848,0.154547,96397.0,96396.0,0.25811165]
[1739473493127,1.00013138,96398.0,96397.0,0.305606]
[1739473493329,1.00013138,96398.0,96397.0,0.40810965]
[1739473494590,1.00013138,96398.0,96397.0,0.41110965]
[1739473495165,1.27694838,96398.0,96397.0,0.41710965]
[1739473495699,1.25931938,96398.0,96397.0,0.41710965]
[1739473496032,1.25931938,96398.0,96397.0,0.25550365]
[1739473496331,1.25942568,96398.0,96397.0,0.26150365]
[1739473496530,1.25942568,96398.0,96397.0,0.25850365]
[1739473496740,1.18431768,96398.0,96397.0,0.42010965]
[1739473496934,1.00023768,96398.0,96397.0,0.42010965]
[1739473497356,1.17504968,96398.0,96397.0,0.41410965]
[1739473497561,1.17504968,96398.0,96397.0,0.41710965]
[1739473497765,1.17504968,96398.0,96397.0,0.26110965]
[1739473497979,1.00023768,96398.0,96397.0,0.79930965]
[1739473498191,1.17154868,96398.0,96397.0,0.64070365]
[1739473498444,1.17066668,96398.0,96397.0,0.79630965]
[1739473498677,1.17066668,96398.0,96397.0,0.64370365]
[1739473499127,1.15947968,96398.0,96397.0,0.10850365]
[1739473499350,1.00023768,96398.0,96397.0,0.26110965]
[1739473499667,1.15411268,96398.0,96397.0,0.79630965]
[1739473499879,1.15411268,96398.0,96397.0,0.26110965]
[1739473500092,1.10911968,96398.0,96397.0,0.26410965]
[1739473500310,1.24852368,96398.0,96397.0,0.26410965]
[1739473500522,1.00023768,96398.0,96397.0,0.26410965]
[1739473500736,1.24832368,96398.0,96397.0,0.26410965]
[1739473500958,1.24832368,96398.0,96397.0,0.10850365]
[1739473501182,1.24832368,96398.0,96397.0,0.006]
[1739473501596,1.14971268,96398.0,96397.0,0.006]
[1739473502016,1.00023768,96398.0,96397.0,0.006]
[1739473502225,1.34331468,96398.0,96397.0,0.006]
[1739473502434,1.34331468,96398.0,96397.0,0.003]
[1739473502846,1.34331468,96398.0,96397.0,0.001]
[1739473503045,1.49891868,96398.0,96397.0,0.002]
[1739473503684,1.34331468,96398.0,96397.0,0.001]
[1739473503849,1.11132368,96398.0,96397.0,0.001]
[1739473504040,1.00023768,96398.0,96397.0,0.10350365]
[1739473504434,1.10314468,96398.0,96397.0,0.10350365]
[1739473504892,1.00023768,96398.0,96397.0,0.10350365]
[1739473505071,1.00023768,96398.0,96397.0,0.10250365]
[1739473505473,1.00023768,96398.0,96397.0,0.10450365]
[1739473506155,1.00023768,96398.0,96397.0,0.10550365]
[1739473506809,1.50356868,96398.0,96397.0,0.10550365]
[1739473507147,1.18286268,96398.0,96397.0,0.10550365]
[1739473507322,1.13900268,96398.0,96397.0,0.10550365]
[1739473507864,1.00023768,96398.0,96397.0,0.10550365]
[1739473508887,1.36748868,96398.0,96397.0,0.10550365]
[1739473509314,1.27572068,96398.0,96397.0,0.10550365]
[1739473509485,1.19300668,96398.0,96397.0,0.10550365]
[1739473510498,1.19300668,96398.0,96397.0,0.26110965]
[1739473510750,1.00023768,96398.0,96397.0,0.26110965]
[1739473510951,1.18702468,96398.0,96397.0,0.26110965]
[1739473512327,1.18702468,96398.0,96397.0,0.25910965]
[1739473512527,1.18702468,96398.0,96397.0,0.25810965]
[1739473512721,1.18702468,96398.0,96397.0,0.26110965]
[1739473513069,1.18702468,96398.0,96397.0,0.10550365]
[1739473513495,1.18702468,96398.0,96397.0,0.26110965]
[1739473513697,1.18702468,96398.0,96397.0,0.26410965]
[1739473514660,1.18702468,96398.0,96397.0,0.26110965]
[1739473515178,1.18702468,96398.0,96397.0,0.155606]
[1739473515318,1.18702468,96398.0,96397.0,0.159606]
[1739473515514,1.18702468,96398.0,96397.0,0.004]
[1739473515719,1.18702468,96398.0,96397.0,0.008]
[1739473516318,1.18702468,96398.0,96395.0,0.155609]
[1739473516514,1.00023768,96398.0,96396.0,0.10250365]
[1739473516949,0.643613,96397.0,96396.0,0.10250365]
[1739473517284,0.488007,96397.0,96396.0,0.10250365]
[1739473517925,0.643613,96397.0,96396.0,0.10250365]
[1739473518126,0.488007,96397.0,96396.0,0.10250365]
[1739473518746,0.488007,96397.0,96396.0,0.10450365]
[1739473518924,0.488007,96397.0,96396.0,0.10250365]
[1739473519137,0.643613,96397.0,96396.0,0.10350365]
[1739473519339,0.643613,96397.0,96396.0,0.10650365]
[1739473519697,0.488007,96397.0,96396.0,0.10550365]
[1739473520106,0.488007,96397.0,96396.0,0.10750365]
[1739473520531,0.381537,96397.0,96396.0,0.10550365]
[1739473520782,0.381537,96397.0,96396.0,0.10350365]
[1739473520977,0.381537,96397.0,96396.0,0.10550365]
[1739473521685,0.537143,96397.0,96396.0,0.001]
[1739473522104,0.537143,96397.0,96396.0,0.003]
[1739473522281,0.537143,96397.0,96396.0,0.005]
[1739473522933,0.537143,96397.0,96396.0,0.003]
[1739473523149,0.537143,96397.0,96396.0,0.004]
[1739473523806,0.537143,96397.0,96396.0,0.001]
[1739473524019,0.381537,96397.0,96396.0,0.001]
[1739473524233,1.00023768,96398.0,96397.0,0.155606]
[1739473524446,1.00023768,96398.0,96397.0,0.25810965]
[1739473524667,2.37965068,96398.0,96397.0,0.10250365]
[1739473524869,1.14664868,96398.0,96397.0,0.25810965]
[1739473525097,1.14664868,96398.0,96397.0,0.10250365]
[1739473525336,1.30225268,96398.0,96397.0,0.10250365]
[1739473525542,1.14664868,96398.0,96397.0,0.10250365]
[1739473525749,1.14664868,96398.0,96397.0,0.10350365]
[1739473526159,1.14664868,96398.0,96397.0,0.10650365]
[1739473526395,1.14664868,96398.0,96397.0,0.26210965]
[1739473526396,1.11967868,96398.0,96397.0,0.26210965]
[1739473526595,1.00023768,96398.0,96397.0,0.10650365]
[1739473526708,1.10550268,96398.0,96397.0,0.10150565]
[1739473526919,1.10550268,96398.0,96397.0,0.10050565]
[1739473527313,1.10550268,96398.0,96397.0,0.10250565]
[1739473527515,1.10550268,96398.0,96397.0,0.10050565]
[1739473527920,1.10550268,96398.0,96397.0,0.10150565]
[1739473529183,1.10550268,96398.0,96397.0,0.001]
[1739473530195,1.10550268,96398.0,96387.0,0.00022323]
[1739473530196,0.155621,96388.0,96387.0,0.00022323]
[1739473530394,1.558498,96388.0,96387.0,0.00022323]
[1739473530613,1.00023768,96398.0,96387.0,0.10272688]